{"text_format":"1","workbook":"xlsx","n_sheets":2,"sheets":["Jutge Cap Marxa","Desplegables"],"not_rendered":{"charts":0,"images":2,"macros":0,"external_links":0,"defined_names":1,"comments":0,"pivot_tables":0},"unopened":[],"bounds":{"document_bytes":16777216,"sheet_cells":100000,"rows_first":2000,"rows_last":500,"rows_between":2000,"halvings":0,"cell_chars":16384,"cell_head_chars":4096},"cells_cut":0,"cells_raw":0,"read":"whole","date_system":"1900"}

{"sheet":"Jutge Cap Marxa","index":0,"n_rows":66,"n_cols":36,"rows_kept":66,"cut":false,"hidden":false,"merged":[[15,28,15,31],[16,19,16,27],[16,28,16,31],[17,19,17,27],[21,19,21,27],[20,1,20,31],[21,3,21,11],[21,12,21,15],[21,28,21,31],[17,3,17,11],[17,12,17,15],[18,3,18,11],[18,12,18,15],[15,19,15,27],[6,1,6,6],[6,23,6,24],[6,25,6,31],[9,1,9,31],[11,1,11,31],[4,1,4,4],[4,5,4,31],[5,1,5,2],[5,3,5,21],[5,23,5,24],[0,9,1,28],[2,9,2,28],[17,28,17,31],[18,19,18,27],[18,28,18,31],[6,7,6,21],[5,25,5,31],[12,12,12,15],[12,3,12,11],[12,19,12,27],[12,28,12,31],[14,1,14,31],[15,3,15,11],[15,12,15,15],[16,3,16,11],[16,12,16,15],[24,3,24,11],[24,12,24,15],[24,19,24,27],[24,28,24,31],[23,1,23,31],[29,3,29,15],[29,19,29,31],[30,3,30,15],[30,19,30,31],[27,1,27,31],[31,3,31,15],[31,19,31,31],[39,1,44,31],[49,1,53,31],[58,1,62,31],[67,1,71,31],[32,3,32,15],[32,19,32,31],[33,3,33,15],[33,19,33,31],[34,3,34,15],[34,19,34,31],[37,1,37,31],[47,1,47,31],[56,1,56,31],[65,1,65,31]]}
["COMITÈ DE JUTGES",null,null,null,null,null,null,null,null,"COMITÈ DE JUTGES"]
[]
[null,null,null,null,null,null,null,null,null,"ACTA DEL CAP DE JUTGES DE MARXA"]
[]
[null,"Competició:"]
[null,"Lloc:",null,null,null,null,null,null,null,null,null,null,null,null,null,null,null,null,null,null,null,null,null,"Data:"]
[null,"Cap Jutges de Marxa:",null,null,null,null,null,{"$f":"VLOOKUP(AI7,Desplegables!A3:C43,2,FALSE)","v":" "},null,null,null,null,null,null,null,null,null,null,null,null,null,null,null,"Panell:",null,{"$f":"VLOOKUP(AI7,Desplegables!A3:C43,3,FALSE)","v":" "},null,null,null,null,null,null,null,null,1]
[]
[]
[null,"JURAT de MARXA"]
[]
[null,"Adjunts Cap Jutges de Marxa"]
[null,null,"1.",{"$f":"VLOOKUP(AI13,Desplegables!A3:C43,2,FALSE)","v":" "},null,null,null,null,null,null,null,null,{"$f":"CONCATENATE(\"(\",VLOOKUP(AI13,Desplegables!A3:C43,3,FALSE),\")\")","v":"( )"},null,null,null,null,null,"2.",{"$f":"VLOOKUP(AJ13,Desplegables!A3:C43,2,FALSE)","v":" "},null,null,null,null,null,null,null,null,{"$f":"CONCATENATE(\"(\",VLOOKUP(AJ13,Desplegables!A3:C43,3,FALSE),\")\")","v":"( )"},null,null,null,null,null,1,1]
[]
[null,"Jutges de Marxa"]
[null,null,"1.",{"$f":"VLOOKUP(AI16,Desplegables!A3:C43,2,FALSE)","v":" "},null,null,null,null,null,null,null,null,{"$f":"CONCATENATE(\"(\",VLOOKUP(AI16,Desplegables!A3:C43,3,FALSE),\")\")","v":"( )"},null,null,null,null,null,"2.",{"$f":"VLOOKUP(AJ16,Desplegables!A3:C43,2,FALSE)","v":" "},null,null,null,null,null,null,null,null,{"$f":"CONCATENATE(\"(\",VLOOKUP(AJ16,Desplegables!A3:C43,3,FALSE),\")\")","v":"( )"},null,null,null,null,null,1,1]
[null,null,"3.",{"$f":"VLOOKUP(AI17,Desplegables!A3:C43,2,FALSE)","v":" "},null,null,null,null,null,null,null,null,{"$f":"CONCATENATE(\"(\",VLOOKUP(AI17,Desplegables!A3:C43,3,FALSE),\")\")","v":"( )"},null,null,null,null,null,"4.",{"$f":"VLOOKUP(AJ17,Desplegables!A3:C43,2,FALSE)","v":" "},null,null,null,null,null,null,null,null,{"$f":"CONCATENATE(\"(\",VLOOKUP(AJ17,Desplegables!A3:C43,3,FALSE),\")\")","v":"( )"},null,null,null,null,null,1,1]
[null,null,"5.",{"$f":"VLOOKUP(AI18,Desplegables!A3:C43,2,FALSE)","v":" "},null,null,null,null,null,null,null,null,{"$f":"CONCATENATE(\"(\",VLOOKUP(AI18,Desplegables!A3:C43,3,FALSE),\")\")","v":"( )"},null,null,null,null,null,"6.",{"$f":"VLOOKUP(AJ18,Desplegables!A3:C43,2,FALSE)","v":" "},null,null,null,null,null,null,null,null,{"$f":"CONCATENATE(\"(\",VLOOKUP(AJ18,Desplegables!A3:C43,3,FALSE),\")\")","v":"( )"},null,null,null,null,null,1,1]
[null,null,"7.",{"$f":"VLOOKUP(AI19,Desplegables!A3:C43,2,FALSE)","v":" "},null,null,null,null,null,null,null,null,{"$f":"CONCATENATE(\"(\",VLOOKUP(AI19,Desplegables!A3:C43,3,FALSE),\")\")","v":"( )"},null,null,null,null,null,"8.",{"$f":"VLOOKUP(AJ19,Desplegables!A3:C43,2,FALSE)","v":" "},null,null,null,null,null,null,null,null,{"$f":"CONCATENATE(\"(\",VLOOKUP(AJ19,Desplegables!A3:C43,3,FALSE),\")\")","v":"( )"},null,null,null,null,null,1,1]
[]
[null,"Secretaris"]
[null,null,"1.",{"$f":"VLOOKUP(AI22,Desplegables!A3:C43,2,FALSE)","v":" "},null,null,null,null,null,null,null,null,{"$f":"CONCATENATE(\"(\",VLOOKUP(AI22,Desplegables!A3:C43,3,FALSE),\")\")","v":"( )"},null,null,null,null,null,"2.",{"$f":"VLOOKUP(AJ22,Desplegables!A3:C43,2,FALSE)","v":" "},null,null,null,null,null,null,null,null,{"$f":"CONCATENATE(\"(\",VLOOKUP(AJ22,Desplegables!A3:C43,3,FALSE),\")\")","v":"( )"},null,null,null,null,null,1,1]
[]
[null,"Responsables Àrea de penalització"]
[null,null,"1.",{"$f":"VLOOKUP(AI25,Desplegables!A3:C45,2,FALSE)","v":" "},null,null,null,null,null,null,null,null,{"$f":"CONCATENATE(\"(\",VLOOKUP(AI25,Desplegables!A3:C45,3,FALSE),\")\")","v":"( )"},null,null,null,null,null,"2.",{"$f":"VLOOKUP(AJ25,Desplegables!A3:C45,2,FALSE)","v":" "},null,null,null,null,null,null,null,null,{"$f":"CONCATENATE(\"(\",VLOOKUP(AJ25,Desplegables!A3:C45,3,FALSE),\")\")","v":"( )"},null,null,null,null,null,1,1]
[]
[]
[null,"PROVES JUTJADES"]
[]
[null,null,"1. ",null,null,null,null,null,null,null,null,null,null,null,null,null,null,null,"2. "]
[null,null,"3. ",null,null,null,null,null,null,null,null,null,null,null,null,null,null,null,"4. "]
[null,null,"5. ",null,null,null,null,null,null,null,null,null,null,null,null,null,null,null,"6. "]
[null,null,"7. ",null,null,null,null,null,null,null,null,null,null,null,null,null,null,null,"8. "]
[null,null,"9. ",null,null,null,null,null,null,null,null,null,null,null,null,null,null,null,"10. "]
[null,null,"11. ",null,null,null,null,null,null,null,null,null,null,null,null,null,null,null,"12. "]
[]
[]
[null,"DESQUALIFICACIONS (Prova, dorsal i article)"]
[]
[]
[]
[]
[]
[]
[]
[]
[]
[null,"SÍNTESI DE LA REUNIÓ PRE - COMPETICIÓ"]
[]
[]
[]
[]
[]
[]
[]
[]
[null,"SÍNTESI DE LA REUNIÓ POST - COMPETICIÓ"]
[]
[]
[]
[]
[]
[]
[]
[]
[null,"OBSERVACIONS GENERALS (Competició, organització, col·laboració, jurat de marxa, ...)"]

{"sheet":"Desplegables","index":1,"n_rows":45,"n_cols":3,"rows_kept":45,"cut":false,"hidden":true,"merged":[]}
[]
["Nº","Nom","Panell"]
[1," "," "]
[2,"Adrià Galín Pons","RFEA \"B\""]
[3,"Albert Pi Vivancos","FCA"]
[4,"Ana Riera Fischer","FCA"]
[5,"Anna Galín Pons","FCA"]
[6,"Blanca López Rueda","RFEA \"B\""]
[7,"Carles Ibars Casasayas","RFEA \"A\""]
[8,"Carles Senar Sánchez","RFEA \"B\""]
[9,"Carlos Pérez Santos","FCA"]
[10,"Eduard Codinach Vanaclocha","RFEA \"A\""]
[11,"Enric Masó Valls","FCA"]
[12,"Fco. Javier Mula Fernández","RFEA \"B\""]
[13,"Ferran Adell Pons","RFEA \"A\""]
[14,"Francisco Godínez López","FCA"]
[15,"Germán Huedo Rosero","RFEA \"A\""]
[16,"Guillem Pera Blanco","RFEA \"A\""]
[17,"Idoia Baixench Rodríguez","RFEA \"A\""]
[18,"Jaume Coris Veray","FCA"]
[19,"Joan Cutrina Martí","RFEA \"A\""]
[20,"Joel Codina Poquet","FCA"]
[21,"Jonathan Carmona Delgado","RFEA \"A\""]
[22,"Jordi Reinoso Soler","RFEA \"A\""]
[23,"Jorge Mora Marugán","FCA"]
[24,"José Manuel Martínez Bermudo","RFEA \"A\""]
[25,"José María Poveda Carmona","RFEA \"A\""]
[26,"José Ramón Salas Camarero","RFEA \"A\""]
[27,"José Saenz de Pablo Solé","RFEA \"A\""]
[28,"Josep Sabarich Joaniquet","RFEA \"B\""]
[29,"Luís Francisco Saladie Lafuente","World Athletics"]
[30,"Luís Santiago Ocampo","RFEA \"A\""]
[31,"Manel Molera Barrabés","RFEA \"A\""]
[32,"Miguel Matute Martínez","RFEA \"A\""]
[33,"Núria Gironés Tomás","FCA"]
[34,"Purificación Molina Puyo","RFEA \"B\""]
[35,"Rafael López Giménez","RFEA \"B\""]
[36,"Rafael Raga Pujol","RFEA \"B\""]
[37,"Raquel Pons Rodríguez","FCA"]
[38,"Ricard Codinach Vanaclocha","RFEA \"A\""]
[39,"Ricardo Amador Escobedo","RFEA \"A\""]
[40,"Sergio Moreno García","RFEA \"A\""]
[41,"Sergio Solana Ros","World Athletics"]
[42,"Juez sin experiencia en marxa","No panel especialista"]
[43,"Voluntario","No panel especialista"]